bitfinex/quotes_BTCUSD_20250808
["timestamp","ask_amount","ask_price","bid_price","bid_amount"]
[1754635673410,0.45565995,116730.0,116720.0,0.34516387]
[1754635675050,0.45565995,116730.0,116720.0,0.02806]
[1754635675283,0.45565995,116730.0,116720.0,0.34516387]
[1754635679215,0.45565995,116730.0,116720.0,0.34732387]
[1754635679414,0.45565995,116730.0,116720.0,0.03022]
[1754635679619,0.45565995,116730.0,116720.0,0.34732387]
[1754635683127,0.45565995,116730.0,116720.0,0.03022]
[1754635683290,0.45565995,116730.0,116720.0,0.34732387]
[1754635684526,0.45565995,116730.0,116720.0,0.03022]
[1754635684730,0.45565995,116730.0,116720.0,0.34732387]
[1754635685153,0.45565995,116730.0,116720.0,0.03022]
[1754635685319,0.45565995,116730.0,116720.0,0.34732387]
[1754635691075,0.45565995,116730.0,116720.0,0.03022]
[1754635691437,0.45565995,116730.0,116720.0,0.34732387]
[1754635692147,0.45565995,116730.0,116720.0,0.02806]
[1754635692398,0.45565995,116730.0,116720.0,0.34516387]
[1754635693478,0.45565995,116730.0,116720.0,0.34732387]
[1754635695879,0.45565995,116730.0,116720.0,0.03022]
[1754635696168,0.45565995,116730.0,116720.0,0.34732387]
[1754635698159,0.45565995,116730.0,116720.0,0.66442774]
[1754635698613,0.45565995,116730.0,116720.0,0.03022]
[1754635698812,0.45565995,116730.0,116720.0,0.66442774]
[1754635703772,0.45565995,116730.0,116720.0,0.03022]
[1754635703997,0.45565995,116730.0,116720.0,0.66442774]
[1754635707240,0.45565995,116730.0,116720.0,0.03022]
[1754635707463,0.45565995,116730.0,116720.0,0.66442774]
[1754635714890,0.45565995,116730.0,116720.0,0.03022]
[1754635715129,0.45565995,116730.0,116720.0,0.66442774]
[1754635718690,0.45565995,116730.0,116720.0,0.34732387]
[1754635726591,0.45565995,116730.0,116720.0,0.03022]
[1754635726799,0.45565995,116730.0,116720.0,0.34732387]
[1754635730700,0.45565995,116730.0,116720.0,0.03022]
[1754635730837,0.45565995,116730.0,116720.0,0.34732387]
[1754635731834,0.45565995,116730.0,116720.0,0.03022]
[1754635732131,0.45565995,116730.0,116720.0,0.66442774]
[1754635732281,0.45565995,116730.0,116720.0,0.34732387]
[1754635734988,0.45565995,116730.0,116720.0,0.66442774]
[1754635742757,0.45565995,116730.0,116720.0,0.03022]
[1754635743185,0.45565995,116730.0,116720.0,0.66442774]
[1754635745615,0.45565995,116730.0,116720.0,0.03022]
[1754635745826,0.45565995,116730.0,116720.0,0.66442774]
[1754635748243,0.32545995,116730.0,116720.0,0.66442774]
[1754635748481,0.45549995,116730.0,116720.0,0.66442774]
[1754635748824,0.38823767,116730.0,116720.0,0.66442774]
[1754635751927,0.38823767,116730.0,116720.0,0.83577797]
[1754635752129,0.38823767,116730.0,116720.0,1.15288184]
[1754635752697,0.38823767,116730.0,116720.0,0.83577797]
[1754635754447,0.38823767,116730.0,116720.0,0.83477797]
[1754635755035,0.38823767,116730.0,116720.0,1.15188184]
[1754635755196,0.38823767,116730.0,116720.0,0.20057023]
[1754635755399,0.44419353,116730.0,116720.0,0.83477797]
[1754635757696,0.44419353,116730.0,116720.0,0.66342774]
[1754635766563,0.44419353,116730.0,116720.0,0.02386]
[1754635766773,0.44419353,116730.0,116720.0,0.31710387]
[1754635767180,0.44419353,116730.0,116720.0,0.66006774]
[1754635770854,0.44419353,116730.0,116720.0,0.66215774]
[1754635774855,0.38823767,116730.0,116720.0,0.66215774]
[1754635778892,0.25819767,116730.0,116720.0,0.66215774]
[1754635779119,0.38819767,116730.0,116720.0,0.66215774]
[1754635781994,0.38819767,116730.0,116720.0,0.83350797]
[1754635782873,0.38819767,116730.0,116720.0,0.66215774]
[1754635783533,0.38819767,116730.0,116720.0,1.15061184]
[1754635787917,0.21686211,116730.0,116720.0,1.15061184]
[1754635793216,0.21686211,116730.0,116720.0,1.49061184]
[1754635793624,0.21686211,116730.0,116720.0,1.51633784]
[1754635799221,0.21686211,116730.0,116720.0,1.49061184]
[1754635799374,0.21686211,116730.0,116720.0,1.51633784]
[1754635800875,0.13,116730.0,116720.0,1.51633784]
[1754635804496,0.13,116730.0,116720.0,1.78573784]
[1754635812882,0.30133556,116730.0,116720.0,1.46863397]
[1754635813032,0.4354636,116730.0,116720.0,1.46654397]
[1754635813228,0.4354636,116730.0,116720.0,1.44081797]
[1754635814701,0.4354636,116730.0,116720.0,1.44283797]
[1754635816327,0.4354636,116730.0,116720.0,1.17343797]
[1754635820933,0.4354636,116730.0,116720.0,1.17141797]
[1754635827211,0.4354636,116730.0,116720.0,1.17343797]
[1754635835388,0.26412804,116730.0,116720.0,1.17343797]
[1754635835627,0.21686211,116730.0,116720.0,1.17343797]
[1754635836041,0.21686211,116730.0,116720.0,1.49054184]
[1754635836592,0.21686211,116730.0,116720.0,1.17343797]
[1754635836799,0.21686211,116730.0,116720.0,1.19916397]
[1754635838836,0.38819767,116730.0,116720.0,1.19916397]
[1754635839400,0.44414981,116730.0,116720.0,0.56495623]
[1754635839606,0.44414981,116730.0,116720.0,1.19916397]
[1754635847034,0.44410981,116730.0,116720.0,1.19916397]
[1754635847488,0.44410981,116730.0,116720.0,1.20016397]
[1754635848073,0.44410981,116730.0,116720.0,1.19916397]
[1754635848273,0.44510981,116730.0,116720.0,1.19916397]
[1754635852940,0.27377425,116730.0,116720.0,1.19916397]
[1754635853483,0.27377425,116730.0,116720.0,1.51626784]
[1754635861146,0.44510981,116730.0,116720.0,1.51626784]
[1754635861528,0.44510981,116730.0,116720.0,1.19916397]
[1754635861723,0.44510981,116730.0,116720.0,1.51626784]
[1754635862985,0.44510981,116730.0,116720.0,1.19916397]
[1754635863192,0.35673515,116730.0,116720.0,1.51626784]
[1754635863389,0.30229556,116730.0,116720.0,1.51626784]
[1754635863810,0.30229556,116730.0,116720.0,0.56495623]
[1754635864001,0.30229556,116730.0,116720.0,1.19916397]
[1754635867718,0.30229556,116730.0,116720.0,1.51626784]
[1754635868323,0.30229556,116730.0,116720.0,1.19916397]
[1754635868767,0.30229556,116730.0,116720.0,1.51626784]
[1754635872119,0.30229556,116730.0,116720.0,1.19916397]
[1754635872248,0.30229556,116730.0,116720.0,1.51626784]
[1754635873342,0.30229556,116730.0,116720.0,1.19916397]
[1754635875247,0.36710651,116730.0,116720.0,1.19916397]
[1754635880392,0.45396862,116730.0,116720.0,1.02781374]
[1754635880745,0.45396862,116730.0,116720.0,1.19916397]
[1754635890832,0.45396862,116730.0,116720.0,0.85916397]
[1754635896488,0.45396862,116730.0,116720.0,0.83343797]
[1754635897899,0.45396862,116730.0,116720.0,0.66208774]
[1754635900716,0.40660669,116730.0,116720.0,0.66208774]
[1754635904086,0.40660669,116730.0,116720.0,0.02788]
[1754635904289,0.40660669,116730.0,116720.0,0.66208774]
[1754635904494,0.40660669,116730.0,116720.0,0.02788]
[1754635904672,0.40660669,116730.0,116720.0,0.66208774]
[1754635904874,0.46439974,116730.0,116720.0,0.02788]
[1754635905074,0.46439974,116730.0,116720.0,0.66208774]
[1754635909257,0.40660669,116730.0,116720.0,0.66208774]
[1754635920266,0.40660669,116730.0,116720.0,0.66006774]
[1754635920926,0.40660669,116730.0,116720.0,0.66213774]
[1754635923688,0.40660669,116730.0,116720.0,0.02793]
[1754635923810,0.40660669,116730.0,116720.0,0.66213774]
[1754635924012,0.46439974,116730.0,116720.0,0.66213774]
[1754635930294,0.40660669,116730.0,116720.0,0.66213774]
[1754635934489,0.40660669,116730.0,116720.0,0.66006774]
[1754635935264,0.40660669,116730.0,116720.0,0.66214774]
[1754635943297,0.40660669,116730.0,116720.0,0.02794]
[1754635943583,0.40660669,116730.0,116720.0,0.66214774]
[1754635943768,0.46672974,116730.0,116720.0,0.66214774]
[1754635945965,0.46672974,116730.0,116720.0,0.02794]
[1754635946121,0.46672974,116730.0,116720.0,0.66214774]
[1754635950319,0.47275225,116730.0,116720.0,0.64072112]
[1754635951205,0.47175225,116730.0,116720.0,0.63674362]
[1754635951417,0.47389225,116730.0,116720.0,0.62925272]
[1754635952499,0.47389225,116730.0,116720.0,0.63728774]
[1754635953271,0.47389225,116730.0,116720.0,0.66472774]
[1754635955457,0.47389225,116730.0,116720.0,0.03052]
[1754635955662,0.47389225,116730.0,116720.0,0.66472774]
[1754635956716,0.81429612,116730.0,116720.0,0.02546]
[1754635956915,0.83997612,116730.0,116720.0,0.001]
[1754635957096,0.52287225,116730.0,116720.0,0.001]
[1754635957302,0.18879925,116720.0,116710.0,0.33352841]
[1754635957628,0.35324612,116720.0,116710.0,0.33560841]
[1754635958539,0.3543678,116720.0,116710.0,0.32154633]
[1754635958846,0.3553678,116720.0,116710.0,0.32154633]
[1754635960158,0.3792278,116720.0,116710.0,0.32154633]
[1754635960386,0.3792278,116720.0,116710.0,0.30547527]
[1754635960868,0.3792278,116720.0,116710.0,0.00208]
[1754635961188,0.38223597,116720.0,116710.0,0.31918387]
[1754635961983,0.38223597,116720.0,116710.0,0.00203356]
[1754635962179,0.38223597,116720.0,116710.0,0.31913743]
[1754635962384,0.38223597,116720.0,116710.0,0.34359743]
[1754635963447,0.38223597,116720.0,116710.0,0.34156387]
[1754635963786,0.38223597,116720.0,116710.0,0.02446]
[1754635963987,0.38223597,116720.0,116710.0,0.34156387]
[1754635965257,0.38223597,116720.0,116710.0,0.33754595]
[1754635965463,0.38223597,116720.0,116710.0,0.02044208]
[1754635965671,0.38223597,116720.0,116710.0,0.33754595]
[1754635965873,0.38123597,116720.0,116710.0,0.33754595]
[1754635966179,0.38023597,116720.0,116710.0,0.33754595]
[1754635966603,0.38023597,116720.0,116710.0,0.33854595]
[1754635967420,0.38023597,116720.0,116710.0,0.34062595]
[1754635968167,0.38023597,116720.0,116710.0,0.02352208]
[1754635968363,0.38023597,116720.0,116710.0,0.34062595]
[1754635969247,0.38023597,116720.0,116710.0,0.33259011]
[1754635970313,0.38023597,116720.0,116710.0,0.32656323]
[1754635974361,0.38023597,116720.0,116710.0,0.00308]
[1754635974755,0.38023597,116720.0,116710.0,0.32018387]
[1754635975366,0.18881394,116710.0,116700.0,0.32586482]
[1754635975497,0.46844172,116710.0,116700.0,0.64504869]
[1754635976204,0.46844172,116710.0,116700.0,0.81642829]
[1754635976414,0.46844172,116710.0,116700.0,0.64504869]
[1754635976622,0.47044172,116710.0,116700.0,0.64504869]
[1754635977523,0.47044172,116710.0,116700.0,0.81642829]
[1754635978728,0.47044172,116710.0,116700.0,0.64504869]
[1754635980362,0.45839417,116710.0,116700.0,0.64504869]
[1754635980572,0.44834939,116710.0,116700.0,0.64504869]
[1754635981360,0.44031356,116710.0,116700.0,0.64504869]
[1754635983272,0.4255647,116710.0,116700.0,0.65307667]
[1754635983600,0.41163593,116710.0,116700.0,0.65307667]
[1754635983806,0.41163593,116710.0,116700.0,0.65307733]
[1754635984052,0.36427811,116710.0,116700.0,0.65307733]
[1754635984562,0.2756071,116710.0,116700.0,0.65307733]
[1754635984773,0.25949086,116710.0,116700.0,0.65307733]
[1754635985271,0.36545938,116710.0,116700.0,1.16445693]
[1754635985488,0.40780248,116710.0,116700.0,1.15642829]
[1754635989754,0.36545938,116710.0,116700.0,1.15642829]
[1754635995955,0.31599866,116710.0,116700.0,1.15642829]
[1754635996100,0.30320492,116710.0,116700.0,1.15642829]
[1754635999641,0.30320492,116710.0,116700.0,0.52222055]
[1754635999776,0.30320492,116710.0,116700.0,1.15642829]
[1754635999979,0.29555254,116710.0,116700.0,1.15642829]
[1754636001000,0.27748399,116710.0,116700.0,1.15642829]
[1754636001207,0.2589007,116710.0,116700.0,1.15642829]
[1754636001627,0.30920219,116710.0,116700.0,1.15642829]
[1754636001830,0.2161996,116710.0,116700.0,1.15642829]
[1754636002045,0.2193496,116710.0,116700.0,1.15642829]
[1754636002880,0.21829007,116710.0,116700.0,1.15642829]
[1754636005262,0.22031007,116710.0,116700.0,1.15642829]
[1754636005463,0.19707175,116710.0,116700.0,1.15642829]
[1754636006003,0.19441728,116710.0,116700.0,1.15642829]
[1754636006209,0.18927706,116710.0,116700.0,1.15642829]
[1754636007152,0.28317053,116710.0,116700.0,1.15642829]
[1754636009373,0.32863477,116710.0,116700.0,1.15642829]
[1754636011067,0.31813349,116710.0,116700.0,1.15642829]
[1754636011215,0.27266925,116710.0,116700.0,1.15642829]
[1754636013162,0.26410161,116710.0,116700.0,0.81642829]
[1754636015300,0.26049704,116710.0,116700.0,1.15642829]
[1754636016009,0.23885413,116710.0,116700.0,1.15642829]
[1754636017170,0.13501,116710.0,116700.0,1.15642829]
[1754636017383,0.12984,116710.0,116700.0,1.18425029]
[1754636018040,0.12984,116710.0,116700.0,1.18216029]
[1754636018705,0.30120492,116710.0,116700.0,1.18216029]
[1754636019318,0.33379004,116710.0,116700.0,0.84216029]
[1754636019839,0.11484244,116710.0,116700.0,0.84216029]
[1754636023062,0.28620736,116710.0,116700.0,1.18216029]
[1754636024183,0.11484244,116710.0,116700.0,1.18216029]
[1754636025833,0.10132233,116710.0,116700.0,1.18216029]
[1754636026030,0.27268725,116710.0,116700.0,1.18216029]
[1754636026231,0.25043534,116710.0,116700.0,1.18216029]
[1754636026538,0.07907042,116710.0,116700.0,1.18216029]
[1754636026937,0.06408164,116710.0,116700.0,1.18216029]
[1754636028048,0.0577021,116710.0,116700.0,1.18216029]
[1754636028930,0.04744111,116710.0,116700.0,1.17702356]
[1754636029883,0.21880603,116710.0,116700.0,1.17702356]
[1754636030590,0.22173603,116710.0,116700.0,1.17702356]
[1754636030831,0.21880603,116710.0,116700.0,1.17702356]
[1754636031327,0.29625852,116710.0,116700.0,1.17702356]
[1754636031837,0.29918852,116710.0,116700.0,1.17702356]
[1754636033243,0.17440191,116720.0,116710.0,0.17136492]
[1754636033516,0.08900425,116720.0,116710.0,0.81183472]
[1754636033733,0.17133556,116730.0,116720.0,0.17135023]
[1754636033931,0.30113556,116730.0,116720.0,0.80758797]
[1754636034130,0.13273,116730.0,116720.0,0.80758797]
[1754636035337,0.10418708,116730.0,116720.0,0.80758797]
[1754636036080,0.10418708,116730.0,116720.0,0.80858797]
[1754636037199,0.27552264,116730.0,116720.0,0.80858797]
[1754636037411,0.27552264,116730.0,116720.0,0.83148797]
[1754636038063,0.30040264,116730.0,116720.0,0.83148797]
[1754636038648,0.30040264,116730.0,116720.0,0.83248797]
[1754636040118,0.30236264,116730.0,116720.0,0.83248797]
[1754636040966,0.30040264,116730.0,116720.0,0.83248797]
[1754636041739,0.27259264,116730.0,116720.0,0.83457797]
[1754636041952,0.10125708,116730.0,116720.0,0.83457797]
[1754636043497,0.10125708,116730.0,116720.0,0.85821497]
[1754636044158,0.10125708,116730.0,116720.0,1.19821497]
[1754636045914,0.10125708,116730.0,116720.0,1.20030497]
[1754636046122,0.10125708,116730.0,116720.0,0.56609723]
[1754636046329,0.10125708,116730.0,116720.0,1.20030497]
[1754636047156,0.10125708,116730.0,116720.0,1.19821497]
[1754636051339,0.09611908,116730.0,116720.0,1.19827871]
[1754636051484,0.09501417,116730.0,116720.0,1.19827871]
[1754636055538,0.09501417,116730.0,116720.0,0.85827871]
[1754636066267,0.09501417,116730.0,116720.0,0.22400723]
[1754636066462,0.09501417,116730.0,116720.0,0.85827871]
[1754636067275,0.09501417,116730.0,116720.0,1.19827871]
[1754636067725,0.02785736,116740.0,116730.0,0.17133556]
[1754636067950,0.02785736,116740.0,116730.0,0.5151813]
[1754636067951,0.15757736,116740.0,116730.0,0.5151813]
[1754636069047,0.15347687,116740.0,116730.0,0.5151813]
[1754636069273,0.11331212,116740.0,116730.0,0.5151813]
[1754636069702,0.11331212,116740.0,116730.0,0.5161813]
[1754636069933,0.11331212,116740.0,116730.0,0.5181813]
[1754636070347,0.11331212,116740.0,116730.0,0.5161813]
[1754636070786,0.11331212,116740.0,116730.0,0.5171813]
[1754636071212,0.10817112,116740.0,116730.0,0.5171813]
[1754636072547,0.02704,116750.0,116740.0,0.17132088]
[1754636072767,0.24570211,116750.0,116740.0,0.80559236]
[1754636073684,0.24570211,116750.0,116740.0,0.17332088]
[1754636073906,0.24570211,116750.0,116740.0,0.80759236]
[1754636074615,0.24570211,116750.0,116740.0,0.80959236]
[1754636075028,0.23092602,116750.0,116740.0,0.80959236]
[1754636075307,0.20095184,116750.0,116740.0,0.80959236]
[1754636075492,0.19860639,116750.0,116740.0,0.80959236]
[1754636075634,0.06888639,116750.0,116740.0,0.80959236]
[1754636075832,0.06888639,116750.0,116740.0,0.81175236]
[1754636076270,0.19860639,116750.0,116740.0,0.81175236]
[1754636076474,0.06888639,116750.0,116740.0,0.81175236]
[1754636076768,0.19860639,116750.0,116740.0,0.83630236]
[1754636077144,0.19860639,116750.0,116740.0,0.83929236]
[1754636079282,0.17741938,116750.0,116740.0,0.83929236]
[1754636079484,0.18762458,116760.0,116750.0,0.1713062]
[1754636079485,0.16381458,116760.0,116750.0,0.1713062]
[1754636079694,0.37924669,116760.0,116750.0,0.1958562]
[1754636079865,0.38247669,116760.0,116750.0,0.51299194]
[1754636080127,0.40628669,116760.0,116750.0,0.48844194]
[1754636080843,0.37968632,116760.0,116750.0,0.48944194]
[1754636081250,0.35827601,116760.0,116750.0,0.48944194]
[1754636081483,0.34992605,116760.0,116750.0,0.49044194]
[1754636082322,0.34992605,116760.0,116750.0,0.49886925]
[1754636082752,0.21866211,116760.0,116750.0,0.52341925]
[1754636082958,0.20692035,116770.0,116760.0,0.17129153]
[1754636083164,0.42350246,116770.0,116760.0,0.80556301]
[1754636083375,0.42558246,116770.0,116760.0,0.83011301]
[1754636084033,0.42558246,116770.0,116760.0,0.51297727]
[1754636085066,0.40177246,116770.0,116760.0,0.51297727]
[1754636088602,0.39854246,116770.0,116760.0,0.51297727]
[1754636091659,0.39854246,116770.0,116760.0,0.51499727]
[1754636093887,0.39854246,116770.0,116760.0,0.34370574]
[1754636099135,0.39854246,116770.0,116760.0,0.51499727]
[1754636100743,0.21658211,116770.0,116760.0,0.83535301]
[1754636100924,0.38785897,116770.0,116760.0,0.83535301]
[1754636103517,0.21658211,116770.0,116760.0,0.83535301]
[1754636103732,0.38785897,116770.0,116760.0,0.83535301]
[1754636104395,0.21658211,116770.0,116760.0,0.83535301]
[1754636106056,0.12972,116770.0,116760.0,0.83535301]
[1754636106452,0.30099686,116770.0,116760.0,0.83535301]
[1754636108245,0.30099686,116770.0,116760.0,0.83635301]
[1754636109175,0.30099686,116770.0,116760.0,0.83735301]
[1754636110013,0.30099686,116770.0,116760.0,0.20308153]
[1754636110217,0.30099686,116770.0,116760.0,0.83735301]
[1754636111078,0.30314686,116770.0,116760.0,0.83735301]
[1754636111291,0.35337508,116770.0,116760.0,0.83735301]
[1754636112941,0.30314686,116770.0,116760.0,0.83735301]
[1754636114373,0.30099686,116770.0,116760.0,0.83735301]
[1754636115354,0.30095686,116770.0,116760.0,0.83735301]
[1754636118256,0.30091686,116770.0,116760.0,0.83735301]
[1754636120259,0.29578279,116770.0,116760.0,0.83735301]
[1754636134408,0.1717222,116780.0,116770.0,0.17127686]
[1754636134625,0.21710421,116780.0,116770.0,0.83388834]
[1754636134852,0.1302421,116780.0,116770.0,0.83388834]
[1754636135776,0.1302421,116780.0,116770.0,0.83488834]
[1754636136014,0.1302421,116780.0,116770.0,0.83588834]
[1754636136381,0.0006021,116780.0,116770.0,0.83588834]
[1754636136584,0.1302421,116780.0,116770.0,0.83588834]
[1754636141012,0.1302421,116780.0,116770.0,0.96552834]
[1754636143537,0.0006021,116780.0,116770.0,0.96552834]
[1754636143749,0.0006021,116780.0,116770.0,0.96452834]
[1754636143965,0.0026021,116780.0,116770.0,0.96452834]
[1754636144406,0.0006021,116780.0,116770.0,0.99024334]
[1754636144611,0.0006021,116780.0,116770.0,1.25964334]
[1754636147621,0.0026621,116780.0,116770.0,0.9394876]
[1754636147826,0.0006021,116780.0,116770.0,0.9425676]
[1754636148629,0.0006021,116780.0,116770.0,0.62543186]
[1754636148842,0.0006021,116780.0,116770.0,0.9425676]
[1754636149605,0.0006021,116780.0,116770.0,0.8129276]
[1754636150768,0.0006021,116780.0,116770.0,0.8119276]
[1754636151777,0.0016021,116780.0,116770.0,0.8119276]
[1754636151978,0.0016021,116780.0,116770.0,1.12906334]
[1754636153421,0.29863051,116790.0,116780.0,0.80553368]
[1754636153629,0.30069051,116790.0,116780.0,0.80553368]
[1754636153846,0.30069051,116790.0,116780.0,0.82917368]
[1754636155236,0.30069051,116790.0,116780.0,0.83130368]
[1754636155450,0.1712622,116780.0,116770.0,0.46947186]
[1754636155644,0.1733222,116780.0,116770.0,0.9419776]
[1754636155847,0.1733222,116780.0,116770.0,0.320885]
[1754636156048,0.28236004,116780.0,116770.0,0.58653574]
[1754636156248,0.41196004,116780.0,116770.0,0.58653574]
[1754636156453,0.41196004,116780.0,116770.0,0.31713574]
[1754636157042,0.17127686,116770.0,116760.0,0.83482853]
[1754636157283,0.17127686,116770.0,116760.0,1.47137211]
[1754636157493,0.16285504,116770.0,116760.0,1.47137211]
[1754636157737,0.16285504,116770.0,116760.0,0.83710063]
[1754636157888,0.16285504,116770.0,116760.0,1.47137211]
[1754636158101,0.41090004,116780.0,116760.0,1.47137211]
[1754636158311,0.3292522,116780.0,116770.0,0.31713574]
[1754636158533,0.3303122,116780.0,116770.0,0.31713574]
[1754636160174,0.3303122,116780.0,116770.0,0.34077574]
[1754636160577,0.3302722,116780.0,116770.0,0.34077574]
[1754636160786,0.3302322,116780.0,116770.0,0.34077574]
[1754636161229,0.3312322,116780.0,116770.0,0.34077574]
[1754636161506,0.3070222,116780.0,116770.0,0.34077574]
[1754636161987,0.3312322,116780.0,116770.0,0.31713574]
[1754636163330,0.3312322,116780.0,116770.0,0.34077574]
[1754636163581,0.35786071,116780.0,116770.0,0.34077574]
[1754636164334,0.35786071,116780.0,116770.0,0.36364]
[1754636164551,0.46893282,116780.0,116770.0,0.65713574]
[1754636164759,0.46889282,116780.0,116770.0,0.65713574]
[1754636164958,0.46889282,116780.0,116770.0,0.68077574]
[1754636165179,0.46889282,116780.0,116770.0,0.65713574]
[1754636165600,0.46885282,116780.0,116770.0,0.65713574]
[1754636165796,0.44464282,116780.0,116770.0,0.65713574]
[1754636166042,0.44146282,116780.0,116770.0,0.68077574]
[1754636166319,0.39058431,116780.0,116770.0,0.68077574]
[1754636166553,0.3854521,116780.0,116770.0,0.68077574]
[1754636166791,0.3854121,116780.0,116770.0,0.68077574]
[1754636167367,0.3853721,116780.0,116770.0,0.68077574]
[1754636167574,0.38365874,116780.0,116770.0,0.68077574]
[1754636169129,0.38198539,116780.0,116770.0,0.68077574]
[1754636169348,0.38198539,116780.0,116770.0,0.8520526]
[1754636169673,0.38194539,116780.0,116770.0,0.68077574]
[1754636170110,0.38194539,116780.0,116770.0,0.5120526]
[1754636170552,0.33694887,116780.0,116770.0,0.5120526]
[1754636170759,0.31549285,116780.0,116770.0,0.5120526]
[1754636170940,0.31549285,116780.0,116770.0,0.5172626]
[1754636173846,0.36348742,116780.0,116770.0,0.5172626]
[1754636174014,0.34633347,116780.0,116770.0,0.5172626]
[1754636175054,0.34633347,116780.0,116770.0,0.4884126]
[1754636175348,0.37397347,116780.0,116770.0,0.4884126]
[1754636175609,0.34944347,116780.0,116770.0,0.5132426]
[1754636176031,0.34633347,116780.0,116770.0,0.5132426]
[1754636177053,0.33777271,116780.0,116770.0,0.5132426]
[1754636177260,0.31636871,116780.0,116770.0,0.5132426]
[1754636177458,0.31636871,116780.0,116770.0,0.5153026]
[1754636179523,0.26432514,116780.0,116770.0,0.5153026]
[1754636183115,0.26432514,116780.0,116770.0,0.34715574]
[1754636183320,0.17127686,116770.0,116760.0,0.0506891]
[1754636183541,0.17325686,116770.0,116760.0,0.34210784]
[1754636184412,0.17525686,116770.0,116760.0,0.34210784]
[1754636184726,0.22163306,116770.0,116760.0,0.34210784]
[1754636185065,0.184755,116770.0,116760.0,0.34210784]
[1754636186517,0.184755,116770.0,116760.0,0.0249721]
[1754636186700,0.184755,116770.0,116760.0,0.34210784]
[1754636187089,0.165482,116770.0,116760.0,0.34210784]
[1754636187499,0.165482,116770.0,116760.0,0.34416784]
[1754636188133,0.165482,116770.0,116760.0,0.34729784]
[1754636188938,0.1190658,116770.0,116760.0,0.34729784]
[1754636189648,0.20592791,116770.0,116760.0,0.34416784]
[1754636189852,0.20592791,116770.0,116760.0,0.34210784]
[1754636190051,0.20903791,116770.0,116760.0,0.34210784]
[1754636190502,0.20903791,116770.0,116760.0,0.0249721]
[1754636190660,0.20703791,116770.0,116760.0,0.34210784]
[1754636191333,0.20560435,116770.0,116760.0,0.34210784]
[1754636191529,0.27791502,116770.0,116760.0,0.34210784]
[1754636191738,0.61958076,116770.0,116760.0,0.0001421]
[1754636192243,0.64530276,116770.0,116760.0,0.0001421]
[1754636193417,0.64530276,116770.0,116760.0,0.0011421]
[1754636193560,0.64530276,116770.0,116760.0,0.0031421]
[1754636194580,0.61958076,116770.0,116760.0,0.0031421]
[1754636195205,0.62863095,116770.0,116760.0,0.0031421]
[1754636195429,0.31149521,116770.0,116760.0,0.0031421]
[1754636195634,0.62863095,116770.0,116760.0,0.0031421]
[1754636196214,0.61150096,116770.0,116760.0,0.0031421]
[1754636198895,0.60245077,116770.0,116760.0,0.0031421]
[1754636200666,0.59086982,116770.0,116760.0,0.0031421]
[1754636201163,0.27373408,116770.0,116760.0,0.0031421]
[1754636201361,0.24473762,116770.0,116760.0,0.0031421]
[1754636201696,0.23594076,116770.0,116760.0,0.0031421]
[1754636206862,0.23594076,116770.0,116760.0,0.34309784]
[1754636207076,0.21141076,116770.0,116760.0,0.34309784]
[1754636207300,0.13599009,116770.0,116760.0,0.34309784]
[1754636208472,0.13599009,116770.0,116760.0,0.34514784]
[1754636209883,0.13595009,116770.0,116760.0,0.34514784]
[1754636211744,0.13591009,116770.0,116760.0,0.34514784]
[1754636212360,0.08877148,116770.0,116760.0,0.34414784]
[1754636212569,0.26004834,116770.0,116760.0,0.34414784]
[1754636213413,0.26004834,116770.0,116760.0,0.34214784]
[1754636213826,0.34360282,116770.0,116760.0,0.34214784]
[1754636214597,0.34004101,116770.0,116760.0,0.0281421]
[1754636214823,0.34004101,116770.0,116760.0,0.34527784]
[1754636215623,0.34000101,116770.0,116760.0,0.34527784]
[1754636217619,0.34000101,116770.0,116760.0,0.0281421]
[1754636217802,0.34000101,116770.0,116760.0,0.34527784]
[1754636218165,0.30576635,116770.0,116760.0,0.34527784]
[1754636220396,0.30576635,116770.0,116760.0,0.34627784]
[1754636220726,0.29078945,116770.0,116760.0,0.34627784]
[1754636222099,0.29078945,116770.0,116760.0,0.34727784]
[1754636222955,0.29681215,116770.0,116760.0,0.34727784]
[1754636223893,0.29078945,116770.0,116760.0,0.34727784]
[1754636225426,0.29078945,116770.0,116760.0,0.66441358]
[1754636225647,0.29078945,116770.0,116760.0,0.0301421]
[1754636225872,0.29078945,116770.0,116760.0,0.34727784]
[1754636226843,0.29078945,116770.0,116760.0,0.0301421]
[1754636227099,0.29078945,116770.0,116760.0,0.34727784]
[1754636228145,0.31386945,116770.0,116760.0,0.0021421]
[1754636228371,0.31989251,116770.0,116760.0,0.31927784]
[1754636228772,0.31989251,116770.0,116760.0,0.34209784]
[1754636229003,0.29681251,116770.0,116760.0,0.34209784]
[1754636231632,0.29681251,116770.0,116760.0,0.34522784]
[1754636234397,0.29078945,116770.0,116760.0,0.34522784]
[1754636234599,0.29078945,116770.0,116760.0,0.34727784]
[1754636235344,0.29078945,116770.0,116760.0,0.0301421]
[1754636235551,0.29078945,116770.0,116760.0,0.34727784]
[1754636237594,0.28653101,116770.0,116760.0,0.34727784]
[1754636237778,0.27153137,116770.0,116760.0,0.34727784]
[1754636238060,0.25696716,116770.0,116760.0,0.34727784]
[1754636238374,0.33869683,116770.0,116760.0,0.34727784]
[1754636238563,0.31727519,116770.0,116760.0,0.34727784]
[1754636239847,0.30660284,116770.0,116760.0,0.66441358]
[1754636240237,0.30265631,116770.0,116760.0,0.66441358]
[1754636240469,0.21910183,116770.0,116760.0,0.66441358]
[1754636241227,0.21910183,116770.0,116760.0,0.66341358]
[1754636242290,0.21708181,116770.0,116760.0,0.66341358]
[1754636242489,0.21708181,116770.0,116760.0,0.66241358]
[1754636242699,0.21808181,116770.0,116760.0,0.66241358]
[1754636243298,0.21708181,116770.0,116760.0,0.66241358]
[1754636244630,0.18751072,116770.0,116760.0,0.66241358]
[1754636244832,0.1809095,116770.0,116760.0,0.66241358]
[1754636248011,0.22196633,116770.0,116760.0,0.66241358]
[1754636250054,0.19194827,116770.0,116760.0,0.66241358]
[1754636252740,0.19194827,116770.0,116760.0,0.79201358]
[1754636257730,0.18960266,116770.0,116760.0,0.79201358]
[1754636257927,0.14854583,116770.0,116760.0,0.79201358]
[1754636258159,0.14854583,116770.0,116760.0,0.1577421]
[1754636258383,0.14854583,116770.0,116760.0,0.79201358]
[1754636260699,0.08686211,116770.0,116760.0,0.79201358]
[1754636260905,0.25813897,116770.0,116760.0,0.79201358]
[1754636261587,0.24787178,116770.0,116760.0,0.78688429]
[1754636261759,0.29282146,116770.0,116760.0,0.78688429]
[1754636264414,0.24404169,116770.0,116760.0,0.78688429]
[1754636265063,0.24141363,116770.0,116760.0,0.78688429]
[1754636275526,0.23072662,116770.0,116760.0,0.78688429]
[1754636281963,0.17127686,116770.0,116760.0,1.27531156]
[1754636282393,0.14982975,116770.0,116760.0,1.10402003]
[1754636282550,0.14982975,116770.0,116760.0,0.78688429]
[1754636282949,0.16929303,116770.0,116760.0,1.27531156]
[1754636283148,0.15082975,116770.0,116760.0,1.27531156]
[1754636283349,0.15082975,116770.0,116760.0,0.95817582]
[1754636284384,0.12920961,116770.0,116760.0,0.95817582]
[1754636286272,0.1120838,116770.0,116760.0,0.95817582]